bitfinex/quotes_ETHUSD_20240922
["timestamp","ask_amount","ask_price","bid_price","bid_amount"]
[1727029797774,0.03751915,2583.5,2583.4,3.87086]
[1727029797945,2.4871082,2584.0,2583.4,6.12996]
[1727029798145,2.4871082,2584.0,2583.8,3.87017]
[1727029798377,0.03767105,2583.9,2583.8,3.87017]
[1727029800873,0.03767105,2583.9,2583.8,6.24426969]
[1727029801081,0.03767105,2583.9,2583.8,6.16687]
[1727029802408,0.03767105,2583.9,2583.8,3.87017]
[1727029804373,0.03767105,2583.9,2583.4,3.0]
[1727029804721,0.49129489,2583.9,2583.7,3.87028]
[1727029804873,0.49129489,2583.9,2583.6,3.87056]
[1727029804874,0.03767105,2583.9,2583.6,3.87056]
[1727029805216,0.03767105,2583.9,2583.6,6.16726]
[1727029805414,0.03767105,2583.9,2583.8,3.87026]
[1727029806498,0.03767105,2583.9,2583.6,6.16714]
[1727029806811,0.03767105,2583.9,2583.5,3.87061]
[1727029806812,0.03767105,2583.9,2583.7,3.8704]
[1727029807376,0.03767105,2583.9,2583.5,3.87062]
[1727029807377,0.03767105,2583.9,2583.6,3.87054]
[1727029807588,3.46025911,2583.8,2583.4,3.87082]
[1727029807809,3.46025911,2583.8,2583.5,3.87071]
[1727029808018,3.46025911,2583.8,2583.4,3.87082]
[1727029808790,3.46025911,2583.8,2583.2,3.87107]
[1727029808791,3.46025911,2583.8,2583.2,7.74215]
[1727029809000,7.33054911,2583.8,2583.3,3.87093]
[1727029809331,7.33054911,2583.8,2583.2,3.87116]
[1727029809332,2.2802,2583.5,2583.2,3.87116]
[1727029809492,2.2802,2583.5,2583.3,3.87097]
[1727029810390,2.2802,2583.5,2583.1,2.2967]
[1727029810391,2.2802,2583.5,2583.2,3.87116]
[1727029812407,2.2802,2583.5,2583.1,2.2967]
[1727029812615,1.18005911,2583.4,2583.0,3.87138]
[1727029813021,1.18005911,2583.4,2583.0,3.87137]
[1727029814699,1.18005911,2583.4,2583.0,7.74276]
[1727029814905,3.09535618,2583.5,2583.0,3.87136]
[1727029815222,3.09535618,2583.5,2583.1,3.8712]
[1727029815920,2.2802,2583.5,2583.1,3.8712]
[1727029816120,2.2802,2583.8,2583.4,3.87075]
[1727029816447,2.2802,2583.8,2583.5,3.8707]
[1727029816808,3.90787105,2583.9,2583.5,3.87062]
[1727029816809,0.03767105,2583.9,2583.5,3.87062]
[1727029817109,0.03767105,2583.9,2583.5,7.74125]
[1727029817309,0.03767105,2583.9,2583.5,3.87062]
[1727029817846,0.03767105,2583.9,2583.5,7.74122]
[1727029818469,0.03767105,2583.9,2583.5,3.8706]
[1727029819366,1.26528289,2583.9,2583.5,3.8706]
[1727029820470,0.03767105,2583.9,2583.5,3.8706]
[1727029820845,0.03767105,2583.9,2583.3,6.16763]
[1727029820846,0.03767105,2583.9,2583.8,3.87026]
[1727029823360,0.03767105,2583.9,2583.7,10.02091]
[1727029823552,0.03767105,2583.9,2583.7,6.15053]
[1727029823750,0.03767105,2583.9,2583.8,3.87026]
[1727029826980,0.03767105,2583.9,2583.7,7.74073]
[1727029827295,0.03767105,2583.9,2583.8,3.87026]
[1727029830190,2.29577105,2583.9,2583.7,6.87041]
[1727029831097,2.29577105,2583.9,2583.7,3.0]
[1727029831098,3.47583016,2583.9,2583.7,3.0]
[1727029831299,3.47583016,2583.9,2583.6,3.87046]
[1727029832598,3.47583016,2583.9,2583.5,3.8707]
[1727029832782,1.18005911,2583.7,2583.5,3.8707]
[1727029833084,0.03660276,2583.6,2583.5,3.8707]
[1727029834204,3.43815911,2583.9,2583.5,3.8707]
[1727029834409,0.03600859,2583.6,2583.5,3.8707]
[1727029834617,3.43815911,2583.9,2583.6,3.87054]
[1727029836923,0.03600859,2583.8,2583.6,3.87054]
[1727029838712,0.03600859,2583.8,2583.6,3.87049]
[1727029838955,0.03600859,2583.8,2583.7,3.87041]
[1727029839076,0.0383082,2584.0,2583.9,3.87011]
[1727029845138,0.0383082,2584.0,2583.9,4.25208152]
[1727029845298,0.0383082,2584.0,2583.9,3.87011]
[1727029846936,0.0383082,2584.0,2583.9,4.2520325]
[1727029848440,0.0383082,2584.0,2583.9,3.87011]
[1727029849244,0.0383082,2584.0,2583.9,4.25202022]
[1727029849935,0.0383082,2584.0,2583.9,3.87011]
[1727029850352,0.0383082,2584.0,2583.9,12.33236487]
[1727029850503,0.0383082,2584.0,2583.9,12.254977]
[1727029850707,0.0383082,2584.0,2583.9,11.50597162]
[1727029850908,0.0383082,2584.0,2583.9,12.49873952]
[1727029851234,0.0383082,2584.0,2583.9,11.88780543]
[1727029851445,0.0383082,2584.0,2583.9,11.07488832]
[1727029852313,0.0383082,2584.0,2583.9,9.75124381]
[1727029852556,0.0383082,2584.0,2583.9,9.36941]
[1727029852749,0.07440248,2584.0,2583.9,9.36941]
[1727029853045,0.07440248,2584.0,2583.9,9.75115036]
[1727029853547,0.07440248,2584.0,2583.9,7.25185036]
[1727029853723,0.07440248,2584.0,2583.9,6.87011]
[1727029859121,1.58856184,2584.0,2583.6,3.87045]
[1727029859341,1.58856184,2584.0,2583.7,3.87041]
[1727029860328,0.07440248,2584.0,2583.8,3.87025]
[1727029860745,0.07440248,2584.0,2583.9,3.87011]
[1727029860950,0.07440248,2584.0,2583.8,3.87025]
[1727029861133,0.0383082,2584.0,2583.8,3.87025]
[1727029861456,0.03582861,2583.9,2583.8,3.87025]
[1727029862013,0.03582861,2583.9,2583.7,3.87038]
[1727029865750,0.03582861,2583.9,2583.6,7.74092]
[1727029866084,0.03582861,2583.9,2583.8,3.87026]
[1727029866220,0.03582861,2583.9,2583.8,8.65418141]
[1727029866428,0.0383082,2584.0,2583.9,3.87011]
[1727029866655,0.07293177,2584.0,2583.9,4.25222275]
[1727029866963,0.07293177,2584.0,2583.9,5.57662349]
[1727029867133,0.07293177,2584.0,2583.9,5.57662049]
[1727029867326,0.07293177,2584.0,2583.9,12.23587275]
[1727029867573,0.07293177,2584.0,2583.9,14.76154413]
[1727029867869,0.0383082,2584.0,2583.9,14.76154413]
[1727029868036,0.0383082,2584.0,2583.9,15.75491076]
[1727029868225,0.0383082,2584.0,2583.9,12.80905004]
[1727029868422,0.0383082,2584.0,2583.9,13.42033238]
[1727029868646,0.0383082,2584.0,2583.9,12.20095671]
[1727029868838,0.0383082,2584.0,2583.9,11.20761028]
[1727029869051,0.0383082,2584.0,2583.9,12.01960718]
[1727029869252,0.0383082,2584.0,2583.9,11.20761028]
[1727029869627,0.0383082,2584.0,2583.9,12.42698595]
[1727029869825,0.0383082,2584.0,2583.9,11.20761028]
[1727029870737,0.0383082,2584.0,2583.9,8.80581028]
[1727029870942,0.0383082,2584.0,2583.9,4.48141254]
[1727029871247,0.07313861,2584.0,2583.9,5.09269177]
[1727029872647,0.07313861,2584.0,2583.9,5.17008819]
[1727029872867,0.0383082,2584.0,2583.9,6.41660182]
[1727029874998,0.0383082,2584.0,2583.9,5.19402005]
[1727029876057,0.0383082,2584.0,2583.9,9.01888091]
[1727029879365,0.0383082,2584.0,2583.9,8.20701209]
[1727029880357,0.0383082,2584.0,2583.9,9.01882949]
[1727029880560,0.0383082,2584.0,2583.9,9.01887386]
[1727029880761,0.0383082,2584.0,2583.9,8.20705646]
[1727029881279,0.0383082,2584.0,2583.9,5.80533164]
[1727029881456,0.0383082,2584.0,2583.9,5.19409523]
[1727029881662,0.07314284,2584.0,2583.9,3.87011]
[1727029881888,0.0383082,2584.0,2583.9,3.87011]
[1727029882481,0.0383082,2584.0,2583.9,5.19438957]
[1727029882884,0.07314284,2584.0,2583.9,5.19438957]
[1727029883088,0.07314284,2584.0,2583.9,5.27178409]
[1727029883780,0.07314284,2584.0,2583.9,5.27178413]
[1727029884415,0.07314284,2584.0,2583.9,5.19438957]
[1727029884793,0.0383082,2584.0,2583.9,5.19438957]
[1727029885176,0.07314284,2584.0,2583.9,5.19438957]
[1727029885406,0.0383082,2584.0,2583.9,5.19438957]
[1727029885810,0.0383082,2584.0,2583.9,5.19477821]
[1727029886413,2.3152082,2584.0,2583.8,3.87019]
[1727029886791,0.03494863,2583.9,2583.8,3.0]
[1727029886991,0.03494863,2583.9,2583.8,4.32477807]
[1727029887806,0.03494863,2583.9,2583.8,8.19503807]
[1727029888235,2.3152082,2584.0,2583.8,8.19503807]
[1727029888410,2.3152082,2584.0,2583.8,6.87026]
[1727029888730,0.03494441,2583.9,2583.8,6.87026]
[1727029888931,0.03494441,2583.9,2583.8,8.19507951]
[1727029890297,2.3152082,2584.0,2583.8,8.19507951]
[1727029890495,0.03494441,2583.9,2583.8,6.87026]
[1727029890695,0.03494441,2583.9,2583.8,8.19509598]
[1727029890913,2.3152082,2584.0,2583.8,8.19509598]
[1727029891133,0.0383082,2584.0,2583.9,3.87011]
[1727029891329,0.0383082,2584.0,2583.9,5.88395121]
[1727029891729,0.0383082,2584.0,2583.9,5.27230731]
[1727029892145,0.0383082,2584.0,2583.9,5.88395043]
[1727029892435,0.0383082,2584.0,2583.9,5.27230731]
[1727029892643,0.0383082,2584.0,2583.9,5.88395043]
[1727029893000,0.0383082,2584.0,2583.9,6.69576783]
[1727029893200,0.0383082,2584.0,2583.9,5.19491358]
[1727029893912,0.0383082,2584.0,2583.9,3.87011]
[1727029894203,0.0383082,2584.0,2583.9,5.1949209]
[1727029894537,0.0383082,2584.0,2583.9,3.87011]
[1727029895249,0.0383082,2584.0,2583.9,9.26780441]
[1727029895511,0.0383082,2584.0,2583.9,13.50095122]
[1727029895995,0.0383082,2584.0,2583.9,14.11255781]
[1727029898142,0.0383082,2584.0,2583.9,10.02582146]
[1727029898351,0.0383082,2584.0,2583.9,9.61868767]
[1727029898645,0.07321039,2584.0,2583.9,9.61868767]
[1727029899042,0.07321039,2584.0,2583.9,9.00708108]
[1727029899251,0.0383082,2584.0,2583.9,9.61867235]
[1727029899696,0.0383082,2584.0,2583.9,9.00708108]
[1727029899883,0.0383082,2584.0,2583.9,9.61866212]
[1727029902565,0.0383082,2584.0,2583.9,9.61860502]
[1727029902778,0.0383082,2584.0,2583.9,12.41848851]
[1727029903759,0.0383082,2584.0,2583.9,11.19911284]
[1727029907798,0.0383082,2584.0,2583.9,12.41848851]
[1727029907978,0.0383082,2584.0,2583.9,11.19911284]
[1727029908301,0.0383082,2584.0,2583.9,14.18492486]
[1727029909985,0.0383082,2584.0,2583.9,13.73002549]
[1727029910486,0.0383082,2584.0,2583.9,15.35058741]
[1727029910802,0.0383082,2584.0,2583.9,13.73002549]
[1727029910973,0.0383082,2584.0,2583.9,14.28002549]
[1727029912364,0.0383082,2584.0,2583.9,19.26967353]
[1727029913213,0.0383082,2584.0,2583.9,16.83262569]
[1727029913375,0.0383082,2584.0,2583.9,19.26967353]
[1727029913784,0.0383082,2584.0,2583.9,16.83262569]
[1727029914081,0.0383082,2584.0,2583.9,16.83203211]
[1727029914286,0.0383082,2584.0,2583.9,16.83216657]
[1727029914889,0.0383082,2584.0,2583.9,16.97314014]
[1727029916583,0.0383082,2584.0,2583.9,17.35960077]
[1727029917525,0.0383082,2584.0,2583.9,15.59694834]
[1727029917682,0.0383082,2584.0,2583.9,17.35743476]
[1727029917878,0.0383082,2584.0,2583.9,17.21646119]
[1727029918123,0.0383082,2584.0,2583.9,18.85845858]
[1727029918344,0.0383082,2584.0,2583.9,18.09504258]
[1727029918681,0.0383082,2584.0,2583.9,18.09404993]
[1727029919079,0.0383082,2584.0,2583.9,12.96311416]
[1727029919387,0.0383082,2584.0,2583.9,6.61531354]
[1727029919717,0.0383082,2584.0,2583.9,6.00458074]
[1727029920577,0.0383082,2584.0,2583.9,8.80387781]
[1727029920781,0.07384762,2584.0,2583.9,4.93392736]
[1727029920979,2.45724762,2584.0,2583.9,6.87011]
[1727029921945,2.70297238,2584.0,2583.8,3.87014]
[1727029922694,2.70297238,2584.0,2583.7,3.87034]
[1727029929188,2.66743296,2584.0,2583.7,3.87034]
[1727029934196,2.66743296,2584.0,2583.6,6.87056]
[1727029936140,0.77167266,2583.9,2583.4,3.87086]
[1727029936343,2.66743296,2584.0,2583.2,5.08577501]
[1727029936344,2.4311,2583.6,2583.2,5.08577501]
[1727029936640,6.30168,2583.6,2583.1,7.74243]
[1727029936992,6.30168,2583.6,2583.2,3.87115]
[1727029937197,7.43682837,2583.6,2583.2,3.87115]
[1727029937394,7.43682837,2583.6,2583.1,4.25281764]
[1727029937597,7.43682837,2583.6,2583.2,3.0]
[1727029937797,7.43682837,2583.6,2583.0,3.87145]
[1727029937798,3.87087,2583.4,2583.0,3.87145]
[1727029938033,2.4311,2583.3,2583.0,3.87145]
[1727029939040,2.4311,2583.3,2583.1,3.0]
[1727029955847,2.4311,2583.3,2583.1,6.87131]
[1727029956584,2.3488,2583.7,2583.2,3.87116]
[1727029956784,7.586136,2583.7,2583.2,3.87116]
[1727029957085,7.586136,2583.7,2583.2,7.74225]
[1727029959362,7.586136,2583.7,2583.3,3.87098]
[1727029960000,6.21922,2583.7,2583.3,3.87098]
[1727029963692,2.3646,2583.6,2583.2,3.87116]
[1727029964102,3.5443309,2583.6,2583.2,3.87116]
[1727029964299,2.3646,2583.5,2583.2,3.87116]
[1727029967405,2.3646,2583.8,2583.4,3.87086]
[1727029968197,6.23487,2583.8,2583.3,6.2498]
[1727029968402,6.23487,2583.8,2583.3,10.12073]
[1727029968706,6.23487,2583.8,2583.3,6.2498]
[1727029971166,6.23487,2583.8,2583.3,3.8709]
[1727029971476,7.36718091,2583.8,2583.3,3.8709]
[1727029971878,7.36724091,2583.8,2583.4,0.38194117]
[1727029972080,7.36724091,2583.8,2583.3,3.8709]
[1727029972081,4.67664181,2583.8,2583.3,3.8709]
[1727029972807,3.87041,2583.7,2583.3,3.8709]
[1727029974508,3.87041,2583.7,2583.4,0.3820346]
[1727029974707,3.87041,2583.7,2583.3,3.8709]
[1727029974894,3.87041,2583.7,2583.4,0.38206436]
[1727029975099,2.3646,2583.6,2583.3,3.8709]
[1727029975414,2.3646,2583.6,2583.4,0.38210456]
[1727029975705,2.3646,2583.6,2583.3,3.8709]
[1727029976478,2.3646,2583.6,2583.4,0.38211263]
[1727029977412,2.3646,2583.6,2583.3,3.8709]
[1727029979578,2.3646,2583.6,2583.4,1.32529721]
[1727029979870,2.3646,2583.6,2583.3,3.8709]
[1727029980072,2.3646,2583.6,2583.4,1.3252968]
[1727029980286,2.3646,2583.6,2583.3,3.8709]
[1727029980722,2.3646,2583.6,2583.4,1.3255471]
[1727029980890,2.3646,2583.6,2583.3,0.81143573]
[1727029981096,2.3646,2583.6,2583.4,1.32554796]
[1727029981417,2.3646,2583.6,2583.3,4.68243573]
[1727029981580,2.3646,2583.6,2583.4,1.32555349]
[1727029981777,2.3646,2583.6,2583.5,1.32587837]
[1727029981990,2.3646,2583.6,2583.3,4.68243573]
[1727029982181,2.3646,2583.6,2583.4,1.32589008]
[1727029982380,3.87043,2583.7,2583.5,1.32588345]
[1727029982679,3.87043,2583.7,2583.3,4.68243573]
[1727029983036,3.87043,2583.7,2583.4,1.32586915]
[1727029983311,3.87043,2583.7,2583.3,4.68243573]
[1727029983525,3.87043,2583.7,2583.4,1.32587147]
[1727029983731,2.4974082,2584.0,2583.6,3.87047]
[1727029984021,6.3674182,2584.0,2583.6,4.68190573]
[1727029984513,6.3674182,2584.0,2583.6,3.87047]
[1727029986876,6.3674182,2584.0,2583.5,4.75954095]
[1727029987926,2.4974082,2584.0,2583.6,3.87051]
[1727029988822,0.0383082,2584.0,2583.9,3.87011]
[1727029989004,0.0383082,2584.0,2583.9,10.11913676]
[1727029989208,0.0383082,2584.0,2583.9,10.04174573]
[1727029989435,0.0383082,2584.0,2583.9,10.42383886]
[1727029990314,0.0383082,2584.0,2583.9,9.61240313]
[1727029990640,0.0383082,2584.0,2583.9,10.82947623]
[1727029991209,0.0383082,2584.0,2583.9,10.4473831]
[1727029991641,0.0383082,2584.0,2583.9,10.42368922]
[1727029992246,0.0383082,2584.0,2583.9,9.61224789]
[1727029992440,0.0383082,2584.0,2583.9,10.82932099]
[1727029992644,0.0383082,2584.0,2583.9,10.42340548]
[1727029992844,0.0383082,2584.0,2583.9,9.61224789]
[1727029993621,0.0383082,2584.0,2583.9,10.93469118]
[1727029994634,0.0383082,2584.0,2583.9,10.55275329]
[1727029995564,0.0383082,2584.0,2583.9,10.55231708]
[1727029995722,0.0383082,2584.0,2583.9,9.23031]
[1727029996457,0.0383082,2584.0,2583.9,6.87011]
[1727029999381,0.0383082,2584.0,2583.9,10.62930576]
[1727029999662,0.0383082,2584.0,2583.9,10.55175015]
[1727029999882,0.0383082,2584.0,2583.9,11.91290774]
[1727030000028,0.0383082,2584.0,2583.9,11.10175015]
[1727030000229,0.0383082,2584.0,2583.9,15.38254932]
[1727030000429,0.0383082,2584.0,2583.9,13.35535963]
[1727030000666,0.0383082,2584.0,2583.9,13.61799359]
[1727030000829,0.0383082,2584.0,2583.9,13.35535963]
[1727030001686,0.0383082,2584.0,2583.9,13.61698113]
[1727030002332,0.0383082,2584.0,2583.9,15.37883662]
[1727030002654,0.0383082,2584.0,2583.9,15.37803531]
[1727030002861,0.0383082,2584.0,2583.9,13.61618881]
[1727030003072,0.0383082,2584.0,2583.9,15.37803531]
[1727030003374,0.0383082,2584.0,2583.9,13.61618881]
[1727030003544,0.0383082,2584.0,2583.9,11.59351313]
[1727030003874,0.0383082,2584.0,2583.9,11.10147181]
[1727030004174,0.0383082,2584.0,2583.9,11.24335447]
[1727030004538,0.0383082,2584.0,2583.9,12.86051767]
[1727030004943,0.0383082,2584.0,2583.9,11.53935586]
[1727030005133,0.0383082,2584.0,2583.9,12.85759362]
[1727030005533,0.0383082,2584.0,2583.9,14.61944012]
[1727030005737,0.0383082,2584.0,2583.9,12.85759362]
[1727030006138,0.0383082,2584.0,2583.9,11.24043042]
[1727030006632,0.0383082,2584.0,2583.9,12.45282657]
[1727030008775,0.0383082,2584.0,2583.9,12.31094391]
[1727030008940,0.0383082,2584.0,2583.9,11.90659885]
[1727030009360,0.0383082,2584.0,2583.9,11.09854776]
[1727030009678,0.0383082,2584.0,2583.9,11.09751707]
[1727030009874,0.0383082,2584.0,2583.9,13.08522698]
[1727030010081,0.0383082,2584.0,2583.9,12.27724797]
[1727030011146,0.0383082,2584.0,2583.9,11.09751707]
[1727030011370,0.0383082,2584.0,2583.9,11.72724797]
[1727030011571,0.0383082,2584.0,2583.9,11.72737243]
[1727030011781,0.0383082,2584.0,2583.9,10.4100409]
[1727030012492,0.0383082,2584.0,2583.9,12.2773951]
[1727030012845,0.0383082,2584.0,2583.9,10.9600409]
[1727030014071,0.0383082,2584.0,2583.9,12.277515]
[1727030014447,0.0383082,2584.0,2583.9,12.27749943]
[1727030018569,0.0383082,2584.0,2583.9,12.27793632]
[1727030019889,0.0383082,2584.0,2583.9,13.08591533]
[1727030020058,0.0383082,2584.0,2583.9,12.27793632]
[1727030022594,0.0383082,2584.0,2583.9,13.08591533]
[1727030024331,0.0383082,2584.0,2583.9,13.08693162]
[1727030024519,0.0383082,2584.0,2583.9,13.49033247]
[1727030027435,0.0383082,2584.0,2583.9,13.89509952]
[1727030027806,0.0383082,2584.0,2583.9,12.31258454]
[1727030028006,0.0383082,2584.0,2583.9,13.49231544]
[1727030028623,0.0383082,2584.0,2583.9,13.49457847]
[1727030028942,0.0383082,2584.0,2583.9,12.28019935]
[1727030029249,0.0383082,2584.0,2583.9,14.03695271]
[1727030029397,0.0383082,2584.0,2583.9,13.49496198]
[1727030029603,0.0383082,2584.0,2583.9,13.49536373]
[1727030031453,0.0383082,2584.0,2583.9,13.89736255]
[1727030031756,0.0383082,2584.0,2583.9,15.65411591]
[1727030032059,0.0383082,2584.0,2583.9,13.89736255]
[1727030033413,0.0383082,2584.0,2583.9,13.89892796]
[1727030033618,0.0383082,2584.0,2583.9,14.03851812]
[1727030034076,0.0383082,2584.0,2583.9,16.06544201]
[1727030034421,0.0383082,2584.0,2583.9,14.79996295]
[1727030034721,0.0383082,2584.0,2583.9,16.82688684]
[1727030037332,0.0383082,2584.0,2583.9,16.06544201]
[1727030037869,0.0383082,2584.0,2583.9,16.82923007]
[1727030038168,0.0383082,2584.0,2583.9,16.83253713]
[1727030039067,0.0383082,2584.0,2583.9,16.83255639]
[1727030039995,1.0,2584.3,2584.2,6.86966]
[1727030040275,1.0,2584.3,2584.2,17.72116677]
[1727030040565,1.0,2584.3,2584.2,14.44541112]
[1727030040977,1.0,2584.3,2584.2,15.20926172]
[1727030041128,1.0,2584.3,2584.2,15.20928239]
[1727030041329,1.0,2584.3,2584.2,14.71724107]
[1727030044455,1.0,2584.3,2584.2,18.52458857]
[1727030046971,1.0,2584.3,2584.2,16.09000594]
[1727030047671,1.0,2584.3,2584.2,13.26580594]
[1727030048485,1.0,2584.3,2584.2,15.2953858]
[1727030048987,1.0,2584.3,2584.2,15.8453858]
[1727030049183,1.0,2584.3,2584.2,15.0815352]
[1727030049798,1.0,2584.3,2584.2,15.84538773]
[1727030050603,3.375,2584.3,2584.2,12.33764295]
[1727030050832,1.0,2584.3,2584.2,10.71378115]
[1727030050984,1.0,2584.3,2584.2,12.74340857]
[1727030051682,1.0,2584.3,2584.2,10.71378115]
[1727030052328,1.0,2584.3,2584.2,9.94992862]
[1727030052488,1.0,2584.3,2584.2,10.71383665]
[1727030052912,1.0,2584.3,2584.2,9.94992862]
[1727030053641,1.0,2584.3,2584.2,10.71385421]
[1727030053852,1.0,2584.3,2584.2,11.47778731]
[1727030054346,1.0,2584.3,2584.2,12.08893343]
[1727030054847,1.0,2584.3,2584.2,13.71284577]
[1727030055346,1.0,2584.3,2584.2,12.08910442]
[1727030055546,1.0,2584.3,2584.2,11.32518474]
[1727030055845,1.0,2584.3,2584.2,12.47110881]
[1727030056842,1.0,2584.3,2584.2,14.50101603]
[1727030057157,1.0,2584.3,2584.2,12.47110881]
[1727030057353,1.0,2584.3,2584.2,14.50101603]
[1727030057911,1.0,2584.3,2584.2,12.47110881]
[1727030058112,1.0,2584.3,2584.2,12.74393242]
[1727030058352,1.0,2584.3,2584.2,10.7140252]
[1727030058652,1.0,2584.3,2584.2,12.74393242]
[1727030058853,1.0,2584.3,2584.2,13.5078704]
[1727030059006,1.0,2584.3,2584.2,14.11902078]
[1727030059206,1.0,2584.3,2584.2,13.73705179]
[1727030059911,1.0,2584.3,2584.2,13.73711045]
[1727030061062,3.308,2584.3,2584.2,13.73711045]
[1727030061211,3.308,2584.3,2584.2,13.33121003]
[1727030061655,3.308,2584.3,2584.2,11.70717574]
[1727030061947,3.308,2584.3,2584.2,9.95013078]
[1727030063055,3.308,2584.3,2584.2,11.57416507]
[1727030063553,3.308,2584.3,2584.2,10.94327681]
[1727030063717,1.0,2584.3,2584.2,12.5673111]
[1727030063913,1.0,2584.3,2584.2,13.33128173]
[1727030064115,1.0,2584.3,2584.2,13.88128173]
[1727030064341,1.0,2584.3,2584.2,14.28717]
[1727030064545,1.0,2584.3,2584.2,12.96345258]
[1727030064747,1.0,2584.3,2584.2,14.28733177]
[1727030065136,1.0,2584.3,2584.2,12.25726966]
[1727030066147,1.0,2584.3,2584.2,13.8813536]
[1727030066337,1.0,2584.3,2584.2,14.28733177]
[1727030069028,1.0,2584.3,2584.2,12.53027856]
[1727030069230,1.0,2584.3,2584.2,14.28746352]
[1727030069540,1.0,2584.3,2584.2,14.2876762]
[1727030072547,1.0,2584.3,2584.2,13.9057377]
[1727030072748,1.0,2584.3,2584.2,14.2877506]
[1727030074260,1.0,2584.3,2584.2,14.28786722]
[1727030075459,1.0,2584.3,2584.2,12.53060786]
[1727030075629,1.0,2584.3,2584.2,14.28791209]
[1727030076869,1.0,2584.3,2584.2,13.73791209]
[1727030077084,1.0,2584.3,2584.2,13.33209897]
[1727030077276,1.0,2584.3,2584.2,12.56805365]
[1727030077635,1.0,2584.3,2584.2,13.33209897]
[1727030078474,1.0,2584.3,2584.2,12.56805365]
[1727030078683,3.308,2584.3,2584.2,12.56805365]
[1727030078975,3.308,2584.3,2584.2,10.94384601]
[1727030079750,1.0,2584.3,2584.2,12.56829041]
[1727030080067,1.0,2584.3,2584.2,12.25789133]
[1727030082278,1.0,2584.3,2584.2,10.5005871]
[1727030082490,1.0,2584.3,2584.2,12.25817296]
[1727030083179,1.0,2584.3,2584.2,14.28884702]
[1727030085330,1.0,2584.3,2584.2,12.53126116]
[1727030086044,1.0,2584.3,2584.2,14.2890811]
[1727030088653,1.0,2584.3,2584.2,14.29039885]
[1727030088958,1.0,2584.3,2584.2,12.53257891]
[1727030089254,1.0,2584.3,2584.2,14.29106223]
[1727030090632,1.0,2584.3,2584.2,14.29140831]
[1727030091231,1.0,2584.3,2584.2,12.25960879]
[1727030091442,1.0,2584.3,2584.2,14.29140355]
[1727030091749,1.0,2584.3,2584.2,14.29168259]
[1727030091954,1.0,2584.3,2584.2,14.29169542]
[1727030092324,1.0,2584.3,2584.2,12.25960879]
[1727030093377,1.0,2584.3,2584.2,12.26015848]
[1727030095678,1.0,2584.3,2584.2,10.50167516]
[1727030096176,1.0,2584.3,2584.2,10.88420794]
[1727030096475,1.0,2584.3,2584.2,12.26132595]
[1727030096781,1.0,2584.3,2584.2,11.71132595]
[1727030097140,1.0,2584.3,2584.2,13.74421735]
[1727030097753,1.0,2584.3,2584.2,13.74419078]
[1727030097754,3.4556,2584.3,2584.2,13.74419078]
[1727030098280,3.4556,2584.3,2584.2,13.74455208]
[1727030099187,3.4556,2584.3,2584.2,13.7446467]
[1727030099889,3.4556,2584.3,2584.2,11.71177676]
[1727030101681,3.4556,2584.3,2584.2,13.7446467]
[1727030104754,3.4556,2584.3,2584.2,11.98490129]
[1727030105197,3.4556,2584.3,2584.2,13.74449518]
[1727030106187,3.4556,2584.3,2584.2,13.74402482]
[1727030107988,3.4556,2584.3,2584.2,11.98443093]
[1727030108656,3.4556,2584.3,2584.2,13.74395785]
[1727030109975,3.4556,2584.3,2584.2,11.71136692]
[1727030110899,3.4556,2584.3,2584.2,10.38594028]
[1727030111109,3.4556,2584.3,2584.2,11.71129353]
[1727030111259,3.4556,2584.3,2584.2,9.95176661]
[1727030111596,3.4556,2584.3,2584.2,11.71124749]
[1727030111802,3.4556,2584.3,2584.2,13.33719996]
[1727030112159,3.4556,2584.3,2584.2,11.71124749]
[1727030112998,3.4556,2584.3,2584.2,13.33720125]
[1727030113158,3.4556,2584.3,2584.2,11.71124749]
[1727030113359,3.4556,2584.3,2584.2,13.74372754]
[1727030113562,3.4556,2584.3,2584.2,11.71124749]
[1727030115014,3.4556,2584.3,2584.2,11.71116414]
[1727030115788,3.4556,2584.3,2584.2,11.71111013]
[1727030116323,3.4556,2584.3,2584.2,13.33704091]
[1727030116611,3.4556,2584.3,2584.2,13.7435081]
[1727030116907,3.4556,2584.3,2584.2,11.71111013]
[1727030117286,3.4556,2584.3,2584.2,13.7435081]
[1727030117688,1.0,2584.3,2584.2,12.26111013]
[1727030118374,1.0,2584.3,2584.2,10.5017126]
[1727030118579,1.0,2584.3,2584.2,12.26096629]
[1727030119623,1.0,2584.3,2584.2,19.71360204]
[1727030119908,1.0,2584.3,2584.2,17.64260463]
[1727030120107,1.0,2584.3,2584.2,17.1105293]
[1727030120271,1.0,2584.3,2584.2,13.34736705]
[1727030120474,1.0,2584.3,2584.2,14.67224105]
[1727030120750,1.0,2584.3,2584.2,15.85070487]
[1727030120876,1.0,2584.3,2584.2,18.28831482]
[1727030121220,1.0,2584.3,2584.2,17.10984563]
[1727030121417,1.0,2584.3,2584.2,14.67224105]
[1727030121715,1.0,2584.3,2584.2,17.10957903]
[1727030122224,1.0,2584.3,2584.2,16.52878916]
[1727030122889,1.0,2584.3,2584.2,18.28745616]
[1727030124728,1.0,2584.3,2584.2,16.52878916]
[1727030125019,1.0,2584.3,2584.2,14.52470861]
[1727030125315,1.0,2584.3,2584.2,18.28563076]
[1727030125488,1.0,2584.3,2584.2,12.25873875]
[1727030127284,1.0,2584.3,2584.2,13.43720257]
[1727030127887,1.0,2584.3,2584.2,11.67907114]
[1727030128439,1.0,2584.3,2584.2,13.43710411]
[1727030128913,1.0,2584.3,2584.2,12.25864029]
[1727030129825,1.0,2584.3,2584.2,12.25857567]
[1727030131427,1.0,2584.3,2584.2,12.64537813]
[1727030133593,1.0,2584.3,2584.2,13.82382195]
[1727030133797,1.0,2584.3,2584.2,13.43703949]
[1727030134220,1.0,2584.3,2584.2,15.87367804]
[1727030134386,1.0,2584.3,2584.2,13.43678465]
[1727030137924,1.0,2584.3,2584.2,11.67900652]
[1727030138426,1.0,2584.3,2584.2,13.43658558]
[1727030138818,1.0,2584.3,2584.2,12.64483598]
[1727030139126,1.0,2584.3,2584.2,12.64457236]
[1727030139488,1.0,2584.3,2584.2,12.64455098]
[1727030141543,1.0,2584.3,2584.2,16.3094148]
[1727030141751,1.0,2584.3,2584.2,15.92270942]
[1727030143147,1.0,2584.3,2584.2,16.30939257]